[Event "Serbian League 2024"]
[Site "Bajina Basta"]
[Date "2024.10.03"]
[Round "7.11"]
[White "Ivanovic, Dragutin"]
[Black "Kecskemeti, Arpad"]
[Result "1-0"]
[ECO "E85"]
[WhiteElo "2308"]
[BlackElo "2236"]
[Annotator "RC"]
[PlyCount "129"]
[EventDate "2024.09.26"]
[EventType "team-tourn"]
[EventCountry "SRB"]
[SourceTitle "playchess.com"]
[Source "ChessBase"]
[SourceQuality "1"]
[TimeControl "40/5400+30:1800+30"]

1. d4 {[%emt 0:00:54]} Nf6 {[%emt 0:00:07]} 2. c4 {[%emt 0:00:18]} g6 {[%emt 0:00:31]} 3. Nc3 {[%emt 0:00:09]} Bg7 {[%emt 0:00:56]} 4. e4 {[%emt 0:00:11]} d6 {[%emt 0:00:06]} 5. f3 {[%emt 0:01:21]} O-O {[%emt 0:00:59]} 6. Be3 {[%emt 0:00:50]} a6 {[%emt 0:04:13]} 7. Qd2 {[%emt 0:02:20]} Nc6 {[%emt 0:01:13]} 8. Nge2 {[%emt 0:00:32]} e5 {[%emt 0:13:02]} 9. d5 {[%emt 0:00:24]} Na5 {[%emt 0:00:42]} 10. Nc1 {[%emt 0:05:05]} c5 {[%emt 0:01:41]} 11. Nb3 {[%emt 0:05:15]} Nxb3 {[%emt 0:05:36]} 12. axb3 {[%emt 0:00:05]} Nh5 {[%emt 0:01:55]} 13. Bd3 {[%emt 0:01:36]} f5 {[%emt 0:04:20]} 14. b4 {[%emt 0:07:55]} cxb4 {[%emt 0:16:48]} 15. Na4 {[%emt 0:00:23]} Nf4 {[%emt 0:06:03]} 16. Nb6 {[%emt 0:02:08]} Rb8 {[%emt 0:00:46]} 17. O-O {[%emt 0:01:15]} Bh6 {[%emt 0:11:27]} 18. Kh1 {[%emt 0:04:33]} Rf7 {[%emt 0:11:05]} 19. Bc2 {[%emt 0:01:44]} Nh5 {[%emt 0:05:38]} 20. Bxh6 {[%emt 0:10:04]} Qxb6 {[%emt 0:01:01]} 21. Be3 {[%emt 0:06:56]} Qd8 {[%emt 0:00:05]} 22. Qxb4 {[%emt 0:01:22]} b6 {[%emt 0:00:40]} 23. c5 {[%emt 0:01:25]} f4 {[%emt 0:01:10]} 24. Bf2 {[%emt 0:01:23]} dxc5 {[%emt 0:01:34]} 25. Qc3 {[%emt 0:07:07]} Qd6 {[%emt 0:00:36]} 26. Bd3 {[%emt 0:03:26]} a5 {[%emt 0:01:30]} 27. Rfc1 {[%emt 0:03:31]} Ng7 {[%emt 0:01:58]} 28. Be2 {[%emt 0:00:34]} Bd7 {[%emt 0:02:14]} 29. Qb3 {[%emt 0:02:11]} g5 {[%emt 0:01:00]} 30. Rg1 {[%emt 0:04:39]} h6 {[%emt 0:00:47]} 31. Be1 {[%emt 0:00:46]} Kh7 {[%emt 0:01:22]} 32. Bc3 {[%emt 0:00:08]} Ne8 {[%emt 0:02:09]} 33. Qc2 {[%emt 0:04:05]} Nc7 {[%emt 0:01:25]} 34. Qb3 {[%emt 0:00:30]} Rg8 {[%emt 0:01:08]} 35. Rgc1 {[%emt 0:00:19]} g4 {[%emt 0:00:57]} 36. fxg4 {[%emt 0:03:08]} Bxg4 {[%emt 0:00:06]} 37. Bf3 {[%emt 0:04:14]} Rfg7 {[%emt 0:00:15]} 38. Rg1 {[%emt 0:02:10]} Bd7 {[%emt 0:00:22]} 39. Be2 {[%emt 0:01:18]} Ne8 {[%emt 0:00:14]} 40. Raf1 {[%emt 0:05:52]} Bg4 {[%emt 0:01:49]} 41. Bf3 {[%emt 0:30:46]} Rg5 {[%emt 0:30:52]} 42. Qb5 {[%emt 0:04:21]} Bd7 {[%emt 0:00:00]} 43. Qb3 {[%emt 0:00:00]} Nf6 {[%emt 0:00:00]} 44. Bd2 {[%emt 0:00:00]} R5g6 {[%emt 0:00:00]} 45. Qd3 {[%emt 0:00:00]} a4 {[%emt 0:00:00]} 46. Be2 {[%emt 0:00:00]} b5 {[%emt 0:00:00]} 47. Bf3 {[%emt 0:00:00]} Rc8 {[%emt 0:00:00]} 48. Qe2 {[%emt 0:00:00]} b4 {[%emt 0:00:00]} 49. g3 {[%emt 0:00:00]} fxg3 {[%emt 0:00:00]} 50. Rxg3 {[%emt 0:00:00]} Rxg3 {[%emt 0:00:00]} 51. hxg3 {[%emt 0:00:00]} c4 {[%emt 0:00:00]} 52. Qe3 {[%emt 0:00:00]} Ng8 {[%emt 0:00:00]} 53. Be2 {[%emt 0:00:00]} c3 {[%emt 0:00:00]} 54. bxc3 {[%emt 0:00:00]} b3 {[%emt 0:00:00]} 55. Rb1 {[%emt 0:00:48]} Ra8 {[%emt 0:02:09]} 56. c4 {[%emt 0:00:07]} Qg6 {[%emt 0:02:25]} 57. Bc3 {[%emt 0:00:40]} Nf6 {[%emt 0:01:17]} 58. Bxe5 {[%emt 0:03:38]} Qxe4+ {[%emt 0:00:58]} 59. Qxe4+ {[%emt 0:00:06]} Nxe4 {[%emt 0:00:02]} 60. Rf1 {[%emt 0:03:03]} Be8 {[%emt 0:01:09]} 61. Rf8 {[%emt 0:00:41]} a3 {[%emt 0:00:49]} 62. Bd3 {[%emt 0:00:14]} Bg6 {[%emt 0:00:17]} 63. Rxa8 {[%emt 0:00:17]} Nf2+ {[%emt 0:00:17]} 64. Kg2 {[%emt 0:00:02]} Nxd3 {[%emt 0:00:38]} 65. Rh8# {[%emt 0:00:07]} 1-0

[Event "Serbian League 2024"]
[Site "Bajina Basta"]
[Date "2024.10.03"]
[Round "7.12"]
[White "Solymosi, Andras"]
[Black "Zivanovic, Bojan"]
[Result "1-0"]
[ECO "A11"]
[WhiteElo "2180"]
[BlackElo "2161"]
[Annotator "RC"]
[PlyCount "123"]
[EventDate "2024.09.26"]
[EventType "team-tourn"]
[EventCountry "SRB"]
[SourceTitle "playchess.com"]
[Source "ChessBase"]
[SourceQuality "1"]
[TimeControl "40/5400+30:1800+30"]

1. Nf3 {[%emt 0:01:06]} Nf6 {[%emt 0:00:15]} 2. g3 {[%emt 0:00:12]} d5 {[%emt 0:00:21]} 3. Bg2 {[%emt 0:00:06]} Bf5 {[%emt 0:00:30]} 4. O-O {[%emt 0:00:09]} e6 {[%emt 0:00:29]} 5. c4 {[%emt 0:00:18]} c6 {[%emt 0:00:58]} 6. d3 {[%emt 0:00:07]} Nbd7 {[%emt 0:05:27]} 7. Nc3 {[%emt 0:03:36]} Be7 {[%emt 0:02:19]} 8. Re1 {[%emt 0:11:36]} Nb6 {[%emt 0:11:18]} 9. cxd5 {[%emt 0:05:20]} cxd5 {[%emt 0:10:47]} 10. a4 {[%emt 0:02:15]} O-O {[%emt 0:07:26]} 11. Nd4 {[%emt 0:06:26]} Bg6 {[%emt 0:01:25]} 12. a5 {[%emt 0:06:15]} Nbd7 {[%emt 0:07:34]} 13. a6 {[%emt 0:04:59]} Qc8 {[%emt 0:11:50]} 14. e4 {[%emt 0:08:33]} Bc5 {[%emt 0:25:07]} 15. Nb3 {[%emt 0:14:22]} bxa6 {[%emt 0:01:51]} 16. Nxc5 {[%emt 0:10:11]} Nxc5 {[%emt 0:01:48]} 17. Na4 {[%emt 0:06:06]} dxe4 {[%emt 0:01:41]} 18. Nxc5 {[%emt 0:00:24]} Qxc5 {[%emt 0:00:01]} 19. dxe4 {[%emt 0:00:27]} Rfd8 {[%emt 0:00:58]} 20. Qe2 {[%emt 0:01:41]} a5 {[%emt 0:00:56]} 21. Bd2 {[%emt 0:02:15]} Bh5 {[%emt 0:03:18]} 22. Qe3 {[%emt 0:00:25]} Qxe3 {[%emt 0:00:28]} 23. Bxe3 {[%emt 0:00:01]} Ng4 {[%emt 0:00:38]} 24. Bc5 {[%emt 0:03:29]} Ne5 {[%emt 0:00:47]} 25. Rxa5 {[%emt 0:03:38]} Nd3 {[%emt 0:02:11]} 26. Rea1 {[%emt 0:01:10]} Nxc5 {[%emt 0:00:56]} 27. Rxc5 {[%emt 0:00:07]} Rd1+ {[%emt 0:01:19]} 28. Rxd1 {[%emt 0:00:09]} Bxd1 {[%emt 0:00:02]} 29. b4 {[%emt 0:03:04]} Rb8 {[%emt 0:00:10]} 30. f4 {[%emt 0:01:02]} h6 {[%emt 0:01:13]} 31. b5 {[%emt 0:00:09]} Be2 {[%emt 0:00:42]} 32. Bf1 {[%emt 0:00:04]} Bxf1 {[%emt 0:00:16]} 33. Kxf1 {[%emt 0:00:03]} Kf8 {[%emt 0:00:09]} 34. Ke2 {[%emt 0:00:09]} Ke8 {[%emt 0:00:15]} 35. Kd3 {[%emt 0:00:22]} Kd7 {[%emt 0:00:07]} 36. Kc4 {[%emt 0:00:28]} Rb6 {[%emt 0:00:48]} 37. Kb4 {[%emt 0:03:12]} Rd6 {[%emt 0:01:30]} 38. Ka5 {[%emt 0:01:14]} Rb6 {[%emt 0:00:05]} 39. e5 {[%emt 0:00:14]} Kd8 {[%emt 0:00:28]} 40. g4 {[%emt 0:00:32]} g6 {[%emt 0:00:23]} 41. Rc3 {[%emt 0:30:19]} Rb7 {[%emt 0:18:02]} 42. Rh3 {[%emt 0:00:00]} Rc7 {[%emt 0:01:02]} 43. Ka6 {[%emt 0:00:00]} Rc4 {[%emt 0:02:18]} 44. Kxa7 {[%emt 0:00:00]} Ra4+ {[%emt 0:00:28]} 45. Kb7 {[%emt 0:00:00]} Rxf4 {[%emt 0:00:06]} 46. Rd3+ {[%emt 0:00:00]} Ke7 {[%emt 0:00:17]} 47. b6 {[%emt 0:00:00]} Rxg4 {[%emt 0:00:34]} 48. Kc6 {[%emt 0:00:00]} Rc4+ {[%emt 0:02:52]} 49. Kb5 {[%emt 0:00:00]} Rc2 {[%emt 0:00:03]} 50. b7 {[%emt 0:00:00]} Rb2+ {[%emt 0:00:56]} 51. Kc6 {[%emt 0:00:00]} Rc2+ {[%emt 0:00:07]} 52. Kb6 {[%emt 0:00:00]} Rb2+ {[%emt 0:00:16]} 53. Kc7 {[%emt 0:00:00]} Rc2+ {[%emt 0:00:44]} 54. Kb8 {[%emt 0:00:00]} Rb2 {[%emt 0:06:27]} 55. Rc3 {[%emt 0:00:00]} Kd7 {[%emt 0:02:30]} 56. Rc7+ {[%emt 0:00:00]} Kd8 {[%emt 0:00:05]} 57. h3 {[%emt 0:00:00]} Rb3 {[%emt 0:00:41]} 58. Rxf7 {[%emt 0:00:00]} Rxh3 {[%emt 0:00:19]} 59. Ka7 {[%emt 0:00:00]} Ra3+ {[%emt 0:00:07]} 60. Kb6 {[%emt 0:00:00]} Rb3+ {[%emt 0:00:11]} 61. Kc6 {[%emt 0:00:00]} Ke8 {[%emt 0:01:20]} 62. Rh7 {[%emt 0:00:22]} 1-0

[Event "Serbian League 2024"]
[Site "Bajina Basta"]
[Date "2024.10.03"]
[Round "7.13"]
[White "Sarana, Alexey"]
[Black "Kuybokarov, Temur"]
[Result "1-0"]
[ECO "E60"]
[WhiteElo "2713"]
[BlackElo "2562"]
[Annotator "TA"]
[PlyCount "83"]
[EventDate "2024.09.26"]
[EventType "team-tourn"]
[EventCountry "SRB"]
[SourceTitle "playchess.com"]
[Source "ChessBase"]
[SourceQuality "1"]
[TimeControl "40/5400+30:1800+30"]

{[%evp 13,83,17,22,10,25,12,14,14,28,32,41,19,32,29,35,34,39,40,29,25,55,-29,43,12,59,56,65,47,24,36,25,29,29,0,77,54,57,83,57,67,102,122,122,112,104,97,101,98,86,90,82,4,8,0,161,134,536,541,503,490,1336,1423,1418,1302,1343,1183,1357,1222,29988,29989,29991,29990]} 1. d4 {[%emt 0:00:02] Krasenkow,Michal} Nf6 {[%emt 0:00:04]} 2. c4 {[%emt 0:00:10]} g6 {[%emt 0:00:05]} 3. f3 {[%emt 0:00:14]} e6 {[%emt 0:00:38]} 4. e4 {[%emt 0:00:26]} c5 {[%emt 0:00:08]} 5. d5 {[%emt 0:00:05]} d6 {[%emt 0:00:16]} 6. Nc3 {[%emt 0:00:48] E60: King's Indian: Unusual lines and Fianchetto Variation without Nc3.} Bg7 {[%emt 0:00:12] 6...Bg7 scores better than 6...exd5.} 7. Nge2 {[%emt 0:00:20]} exd5 {[%emt 0:01:06]} 8. cxd5 {[%emt 0:00:14]} Nbd7 {[%emt 0:00:45]} 9. Ng3 {[%emt 0:00:29]} h5 {[%emt 0:02:58]} 10. Be2 {[%emt 0:01:36]} Nh7 {[%emt 0:07:48]} 11. Nf1 {[%emt 0:03:09]} a6 $146 {[%emt 0:04:39]} ({Predecessor:} 11... Qh4+ 12. g3 Qe7 13. Ne3 O-O 14. a4 Ne5 15. O-O Bh3 16. Re1 Rae8 17. Bd2 a6 {1-0 Ding,L (2812)-Grischuk,A (2771) Gashimov Memorial 6th 2019 (2)}) 12. a4 {[%emt 0:00:42]} Qh4+ {[%emt 0:02:30]} 13. g3 {[%emt 0:00:31]} Qe7 {[%emt 0:01:15]} 14. Ne3 {[%emt 0:00:36]} Bd4 {[%emt 0:12:50]} 15. Nc2 {[%emt 0:02:06]} Bg7 {[%emt 0:01:21]} 16. O-O {[%emt 0:05:23]} h4 {[%emt 0:07:50]} 17. Be3 {[%emt 0:09:16]} ({White should try} 17. g4 $14) 17... O-O {[%emt 0:07:04]} (17... hxg3 $11 18. hxg3 f5) 18. Qd2 {[%emt 0:04:46]} b6 {[%emt 0:09:35]} (18... Ne5 $11) 19. Rae1 $14 {[%emt 0:03:20]} Ne5 {[%emt 0:03:31]} 20. Kg2 {[%emt 0:06:12]} (20. Bh6 {simplifies} hxg3 21. hxg3 f5 22. exf5 Bxf5 23. Bxg7 Qxg7 24. Ne3) 20... f5 {[%emt 0:04:52]} 21. Bf4 {[%emt 0:11:44]} fxe4 {[%emt 0:03:37]} 22. Nxe4 {[%emt 0:01:45]} Bf5 {[%emt 0:01:01]} 23. Ng5 {[%emt 0:06:23]} Qd7 {[%emt 0:03:15] [#]} (23... Nxg5 $11 {remains equal.} 24. Bxg5 h3+ 25. Kg1 Qd7) 24. Ne6 $1 $16 {[%emt 0:03:24]} Bxe6 {[%emt 0:00:56]} 25. dxe6 {[%emt 0:00:02]} Qxe6 {[%emt 0:00:41]} 26. Ne3 {[%emt 0:00:23]} Nf6 {[%emt 0:07:15]} 27. Bxe5 {[%emt 0:04:28]} Qxe5 {[%emt 0:00:07]} 28. Nc4 {[%emt 0:01:36]} Qd5 {[%emt 0:03:37]} 29. Qc2 {[%emt 0:07:40]} Rae8 {[%emt 0:06:47]} 30. Nxb6 {[%emt 0:00:15]} Qg5 {[%emt 0:00:56]} 31. f4 {[%emt 0:00:57]} Qh6 {[%emt 0:00:11]} 32. Bxa6 {[%emt 0:04:11]} (32. Qd1 $16) 32... Ng4 $1 $11 {[%emt 0:01:10]} 33. Qb3+ {[%emt 0:03:50]} Kh7 $2 {[%emt 0:00:05]} (33... Kh8 $11 {and Black has nothing to worry.} 34. h3 Rxe1 35. Rxe1 Nf6) 34. Nd7 {[%emt 0:01:37]} h3+ $2 {[%emt 0:05:12][%mdl 8192]} (34... Rh8 $16) 35. Kh1 $18 {[%emt 0:00:12]} Nf2+ {[%emt 0:00:12]} 36. Kg1 $1 {[%emt 0:00:24]} Bd4 {[%emt 0:00:12]} (36... Ng4 $142) 37. Rxe8 $18 {[%emt 0:02:02]} (37. Nxf8+ Qxf8 38. Ra1 Re3 39. Qb7+ Re7 $11) 37... Rxe8 {[%emt 0:02:18]} 38. Qf7+ {[%emt 0:00:03]} ({Stronger than} 38. Rxf2 Qg7 39. Kf1 Bxf2 (39... Qxd7 40. Re2 $16) 40. Kxf2 Qxd7 $19) 38... Qg7 {[%emt 0:00:05]} 39. Qxe8 {[%emt 0:00:07]} Ng4+ {[%emt 0:02:21]} 40. Kh1 {[%emt 0:00:04]} Nf2+ {[%emt 0:00:34]} 41. Rxf2 $1 {[%emt 0:30:10]} Bxf2 {[%emt 0:30:04]} 42. Bd3 {[%emt 0:00:32]} 1-0

[Event "Serbian League 2024"]
[Site "Bajina Basta"]
[Date "2024.10.03"]
[Round "7.14"]
[White "Sychev, Klementy"]
[Black "Matlakov, Maxim"]
[Result "1-0"]
[ECO "B38"]
[WhiteElo "2532"]
[BlackElo "2636"]
[Annotator "TA"]
[PlyCount "101"]
[EventDate "2024.09.26"]
[EventType "team-tourn"]
[EventCountry "SRB"]
[SourceTitle "playchess.com"]
[Source "ChessBase"]
[SourceQuality "1"]
[TimeControl "40/5400+30:1800+30"]

{[%evp 31,101,39,88,85,83,78,70,85,89,93,92,90,97,97,97,97,97,97,97,97,97,85,106,93,98,79,95,100,105,102,100,107,111,76,79,72,74,57,59,48,80,90,73,70,122,132,116,107,136,138,355,366,395,359,412,403,404,401,394,373,512,469,528,529,881,529,6773,5257,29984,29985,29985,29986]} 1. e4 {[%emt 0:00:04]} c5 {[%emt 0:01:40]} 2. Nf3 {[%emt 0:00:06]} g6 {[%emt 0:00:07]} 3. d4 {[%emt 0:02:34]} cxd4 {[%emt 0:00:18]} 4. Nxd4 {[%emt 0:01:34]} Nc6 {[%emt 0:00:36]} 5. c4 {[%emt 0:00:39]} Bg7 {[%emt 0:00:31]} 6. Be3 {[%emt 0:00:08]} Qb6 {[%emt 0:00:16]} 7. Nb5 {[%emt 0:09:45] B38: Sicilian: Maroczy Bind with 5...Bg7 and 7...0-0.} Qa5+ {[%emt 0:00:22]} 8. N5c3 $1 {[%emt 0:01:21][%mdl 4] is currently scoring better than 8.N1c3.} d6 {[%emt 0:00:18]} 9. Be2 {[%emt 0:00:05]} Qb4 {[%emt 0:00:10]} 10. Qc1 {[%emt 0:00:22]} Bd4 {[%emt 0:01:09]} 11. Bd2 {[%emt 0:00:07]} Nf6 {[%emt 0:00:34]} 12. O-O {[%emt 0:01:16]} Bg4 {[%emt 0:05:03]} 13. Bxg4 {[%emt 0:37:51]} Nxg4 {[%emt 0:00:33]} 14. h3 $5 $146 {[%emt 0:01:18][%mdl 8] An interesting novelty.} ({Predecessor:} 14. Na3 Qc5 15. Nd1 Qe5 16. Bf4 Qxe4 17. Nb5 O-O 18. Nxd4 Qxd4 19. h3 Nge5 20. Bh6 {0-1 Donchenko,A (2639)-Vakhidov,J (2580) Tashkent UzChess Challengers 2024 (7)}) 14... Nf6 {[%emt 0:05:10]} 15. Na3 {[%emt 0:01:50]} Ne5 {[%emt 0:35:05]} 16. Nc2 {[%emt 0:15:54]} ({Better is} 16. b3 $16 Nd3 17. Qc2 (17. Nc2 $2 $19)) 16... Qc5 {[%emt 0:00:53]} (16... Qxc4 $14 17. Nxd4 Qxd4) 17. Nxd4 $16 {[%emt 0:02:06]} Qxd4 {[%emt 0:00:29]} 18. Nb5 {[%emt 0:01:07]} Qc5 {[%emt 0:10:10]} 19. b3 {[%emt 0:03:53]} a6 {[%emt 0:13:50]} 20. Nc3 {[%emt 0:01:18]} O-O {[%emt 0:01:19]} 21. Be3 {[%emt 0:06:42]} Qa5 {[%emt 0:01:19]} 22. Bg5 {[%emt 0:01:03]} Ned7 {[%emt 0:11:23]} 23. a4 {[%emt 0:03:22]} Rac8 {[%emt 0:01:04]} 24. Rb1 {[%emt 0:00:58]} Rfe8 {[%emt 0:01:24]} 25. Re1 {[%emt 0:00:18]} Nh5 {[%emt 0:01:58]} 26. Nd5 {[%emt 0:00:22]} f6 {[%emt 0:00:11]} 27. Bd2 {[%emt 0:00:29]} Qd8 {[%emt 0:00:23]} 28. Qd1 {[%emt 0:00:32]} e6 {[%emt 0:00:45]} 29. Nc3 {[%emt 0:00:35]} Qe7 {[%emt 0:00:13]} 30. Be3 {[%emt 0:00:31]} Nc5 {[%emt 0:03:13]} 31. Qd2 {[%emt 0:02:56]} Rc6 {[%emt 0:02:33]} 32. f4 {[%emt 0:01:56]} f5 {[%emt 0:00:55]} 33. exf5 {[%emt 0:01:29]} gxf5 {[%emt 0:00:01]} 34. Bf2 {[%emt 0:01:21]} Qf7 {[%emt 0:01:03]} 35. Bd4 {[%emt 0:00:29]} Nf6 {[%emt 0:00:49]} 36. Bxf6 {[%emt 0:00:10]} Qxf6 {[%emt 0:00:01]} 37. Re3 {[%emt 0:00:11]} Kf7 {[%emt 0:00:39]} (37... Kh8 $14) 38. b4 {[%emt 0:01:01]} Nd7 {[%emt 0:00:25] [#]} 39. c5 $1 {[%emt 0:00:42]} Rd8 {[%emt 0:00:55]} 40. Rd3 {[%emt 0:00:43]} (40. cxd6 $6 Nb6 41. Rd3 Nc4 $14) 40... d5 $2 {[%emt 0:02:07]} (40... Qh4 $16 {was necessary.} 41. b5 (41. Rxd6 Rxd6 42. cxd6 Nb6 $18) (41. cxd6 Nb6 $16) 41... axb5) 41. Nxd5 $18 {[%emt 0:11:04]} exd5 {[%emt 0:00:51]} 42. Rxd5 {[%emt 0:00:12]} Ke8 {[%emt 0:01:10]} 43. Rd1 {[%emt 0:01:54]} Qe7 {[%emt 0:01:41]} 44. Kh2 {[%emt 0:12:00]} (44. Rxf5 Nf6 45. Qxd8+ Qxd8 46. Rxd8+ Kxd8 $11) 44... Re6 {[%emt 0:08:44]} 45. Qd4 {[%emt 0:01:11]} (45. Rxf5 Nf6 46. Qxd8+ Qxd8 47. Rxd8+ Kxd8 $11) 45... Qf7 {[%emt 0:20:40]} 46. b5 {[%emt 0:00:58]} (46. Qh8+ Ke7 47. Qd4 Ke8) 46... axb5 {[%emt 0:00:00]} 47. axb5 {[%emt 0:00:04]} h5 {[%emt 0:00:00]} 48. Rd3 {[%emt 0:02:18]} Rf6 {[%emt 0:00:00]} 49. Re3+ {[%emt 0:00:59]} Kf8 {[%emt 0:00:00]} 50. c6 {[%emt 0:01:12]} bxc6 {[%emt 0:00:00]} 51. bxc6 {[%emt 0:00:03]} 1-0

[Event "Serbian League 2024"]
[Site "Bajina Basta"]
[Date "2024.10.03"]
[Round "7.16"]
[White "Pap, Misa"]
[Black "Nestorovic, Nikola"]
[Result "1/2-1/2"]
[ECO "C70"]
[WhiteElo "2389"]
[BlackElo "2458"]
[Annotator "RC"]
[PlyCount "47"]
[EventDate "2024.09.26"]
[EventType "team-tourn"]
[EventCountry "SRB"]
[SourceTitle "playchess.com"]
[Source "ChessBase"]
[SourceQuality "1"]
[TimeControl "40/5400+30:1800+30"]

1. e4 {[%emt 0:09:49]} e5 {[%emt 0:00:10]} 2. Nf3 {[%emt 0:00:32]} Nc6 {[%emt 0:00:04]} 3. Bb5 {[%emt 0:00:29]} a6 {[%emt 0:00:21]} 4. Ba4 {[%emt 0:00:05]} Nge7 {[%emt 0:00:20]} 5. c3 {[%emt 0:00:24]} Ng6 {[%emt 0:00:24]} 6. d4 {[%emt 0:00:19]} exd4 {[%emt 0:00:06]} 7. cxd4 {[%emt 0:00:10]} Bb4+ {[%emt 0:00:12]} 8. Nc3 {[%emt 0:00:03]} d5 {[%emt 0:00:40]} 9. exd5 {[%emt 0:01:39]} Bxc3+ {[%emt 0:02:50]} 10. bxc3 {[%emt 0:00:04]} Qxd5 {[%emt 0:00:06]} 11. Qe2+ {[%emt 0:05:16]} Qe6 {[%emt 0:00:06]} 12. d5 {[%emt 0:00:31]} Qxe2+ {[%emt 0:00:35]} 13. Kxe2 {[%emt 0:00:02]} b5 {[%emt 0:00:11]} 14. Bb3 {[%emt 0:05:48]} Na5 {[%emt 0:04:38]} 15. Rd1 {[%emt 0:18:08]} Bb7 {[%emt 0:17:36]} 16. d6 {[%emt 0:09:05]} cxd6 {[%emt 0:03:03]} 17. Rxd6 {[%emt 0:00:12]} O-O {[%emt 0:00:21]} 18. Be3 {[%emt 0:00:51]} Rac8 {[%emt 0:03:28]} 19. Rc1 {[%emt 0:00:44]} Ne7 {[%emt 0:18:56]} 20. Nd4 {[%emt 0:05:02]} Rfd8 {[%emt 0:04:02]} 21. Rxd8+ {[%emt 0:00:42]} Rxd8 {[%emt 0:00:04]} 22. Bg5 {[%emt 0:15:05]} Rd7 {[%emt 0:04:31]} 23. Bxe7 {[%emt 0:00:17]} Rxe7+ {[%emt 0:00:07]} 24. Kf1 {[%emt 0:00:32]} 1/2-1/2

[Event "Serbian League 2024"]
[Site "Bajina Basta"]
[Date "2024.10.03"]
[Round "7.17"]
[White "Todorovic, Goran M"]
[Black "Damljanovic, Branko"]
[Result "1/2-1/2"]
[ECO "C56"]
[WhiteElo "2289"]
[BlackElo "2354"]
[Annotator "TA"]
[PlyCount "23"]
[EventDate "2024.09.26"]
[EventType "team-tourn"]
[EventCountry "SRB"]
[SourceTitle "playchess.com"]
[Source "ChessBase"]
[SourceQuality "1"]
[TimeControl "40/5400+30:1800+30"]

{[%evp 9,23,23,25,29,18,15,30,0,0,0,0,0,0,0,0,0]} 1. e4 {[%emt 0:00:31]} e5 {[%emt 0:11:41]} 2. Nf3 {[%emt 0:00:12]} Nc6 {[%emt 0:00:04]} 3. Bc4 {[%emt 0:01:00]} d6 {[%emt 0:00:20]} 4. d4 {[%emt 0:03:54]} Nf6 {[%emt 0:00:16]} 5. dxe5 {[%emt 0:05:17]} dxe5 {[%emt 0:00:32]} 6. Qxd8+ {[%emt 0:00:37]} Nxd8 {[%emt 0:00:09]} 7. Nxe5 {[%emt 0:10:40]} Nxe4 {[%emt 0:03:24]} 8. Nd2 {[%emt 0:01:49] White has an edge.} Nd6 {[%emt 0:02:38] The position is equal.} 9. Bb3 {[%emt 0:02:10]} a5 {[%emt 0:06:43]} 10. a4 {[%emt 0:01:41]} Be6 {[%emt 0:02:24]} 11. O-O {[%emt 0:02:59]} Be7 {[%emt 0:06:36]} 12. Re1 {[%emt 0:04:18] Not much happened in this game.   Weighted Error Value: White=0.05 (flawless) /Black=0.03 (flawless) .  Inaccurate:     	White=1     	---        OK:         	White=4     	Black=4} 1/2-1/2